Cogmind - Beta 16.1 @@@ ROGUE MODE // 2026.03.02 @ 15:01:03 Player: Ragnakor Result: Destroyed by as-78341 with Assembled F-torch Performance ------------- Evolutions (0) 0 Regions Visited (4) 800 Robots Destroyed (16) 80 Value Destroyed (393) 393 Prototype IDs (0) 0 Alien Tech Used (0) 0 Bonus (300) 300 TOTAL SCORE: 1573 Bonus ------- Aligned with FarCom 300 Cogmind --------- Core Integrity 0/250 Matter 262/300 Energy 100/100 System Corruption 11% Temperature Cool (20) Movement Rolling (100) Location -9/Mines Parts ------- > --- POWER (1) -------- Ion Engine > --- PROPULSION (2) --- Compact Wheel > --- UTILITY (2) ------ Small Storage Unit Seismic Detector > --- WEAPON (2) ------- Welding Torch > --- INVENTORY (8) ---- Ion Engine Large Matter Pod (150) Large Matter Pod (115) Tractor Beam Mini Grenade Launcher Peak State ------------ > --- POWER ------------ Light Nuclear Core > --- PROPULSION ------- Light Treads Aluminum Leg > --- UTILITY ---------- Small Storage Unit Tractor Beam > --- WEAPON ----------- Assault Rifle Rocket Launcher > --- INVENTORY -------- Ion Engine Ion Engine Large Matter Pod Assault Rifle [Rating: 10] Favorites ----------- Power Light Nuclear Core Engine Ion Engine Power Core Light Nuclear Core Propulsion Light Treads Treads Light Treads Leg Aluminum Leg Wheel Compact Wheel Utility Small Storage Unit Device Tractor Beam Storage Small Storage Unit Weapon Assault Rifle Ballistic Gun Assault Rifle Launcher Rocket Launcher Special Weapon Welding Torch Build | -11 -10 -10 -10 -9 ------- Run | Yrd Mat Min Exi Min Slots Evolved . | . . . . . Power . | . . . . . Propulsion . | . . . . . Utility . | . . . . . Weapon . | . . . . . Parts Attached 16 | 6 2 4 . 4 Power 3 | 1 1 1 . . Engine 2 | 1 1 . . . Core 1 | . . 1 . . Reactor . | . . . . . Propulsion 5 | 2 . 1 . 2 Treads 2 | 2 . . . . Leg 1 | . . 1 . . Wheel 2 | . . . . 2 Hover . | . . . . . Flight . | . . . . . Utility 4 | 1 1 1 . 1 Device 3 | . 1 1 . 1 Storage 1 | 1 . . . . Processor . | . . . . . Hackware . | . . . . . Protection . | . . . . . Artifact . | . . . . . Weapon 4 | 2 . 1 . 1 Energy Gun . | . . . . . Energy Cannon . | . . . . . Ballistic Gun 2 | 2 . . . . Ballistic Cannon . | . . . . . Launcher 1 | . . 1 . . Special Weapon 1 | . . . . 1 Impact Weapon . | . . . . . Slashing Weapon . | . . . . . Piercing Weapon . | . . . . . Special Melee Weapon . | . . . . . Unidentified Prototypes . | . . . . . Parts Lost 6 | . 1 . . 5 Power 1 | . . . . 1 Propulsion 1 | . . . . 1 Utility 1 | . 1 . . . Weapon 3 | . . . . 3 Highest Loss Streak 2 | . 1 . . 2 To Critical Strikes . | . . . . . Average Backups 3 | . 1 3 4 5 Power 1 | . . 1 2 1 Propulsion . | . . . . . Utility 1 | . 1 1 1 2 Weapon . | . . . 1 1 Tool/Special . | . . . . . Unused Backups 3 | . . . . 3 Power . | . . . . . Propulsion . | . . . . . Utility 2 | . . . . 2 Weapon 1 | . . . . 1 Tool/Special . | . . . . . Average Slot Usage (%) 97 | . 94 92 100 86 Engine 3 | . 14 3 . 2 Core 10 | . . 10 14 7 Treads 15 | . 25 14 14 10 Leg 10 | . . 10 14 10 Device 13 | . 10 10 14 14 Storage 14 | . 14 14 14 14 Ballistic Gun 17 | . 28 22 14 9 Launcher 10 | . . 5 14 7 Peak Build Rating 10 | 6 7 10 10 10 Average Rating 8 | 5 6 8 10 7 On Entrance 6 | . 6 5 10 10 Avg Prop Armor Cover (%) 10 | . . 10 10 11 Naked Turns . | . . . . . Heaviest Build 17 | 14 15 17 17 17 Greatest Support 40 | 40 40 20 10 32 Greatest Overweight (x) 1 | . . 1 1 1 Average Overweight (x) . | . . . 1 . Largest Inventory Capacity 8 | 8 8 8 8 8 Average Capacity 7 | 7 8 8 8 8 Most Carried 7 | . 3 5 5 7 Average Carried 3 | . 1 3 4 5 Final Capacity 8 | 8 8 8 8 8 Final Carried 5 | . 3 4 5 5 Class Distribution -------------------- 100% | Mutant Dominant Class ---------------- Mutant | -10/Materials Mutant | -10/Mines Mutant | -10/Exiles Mutant | -9/Mines Resources | -11 -10 -10 -10 -9 ----------- Run | Yrd Mat Min Exi Min Matter Collected 912 | 225 199 74 150 264 Remotely 285 | . . 34 . 251 Salvage Created 520 | . 369 74 . 77 Parts 33 | . 23 5 . 5 Haulers Intercepted . | . . . . . Recyclers Shooed 2 | . 1 . . 1 Parts Field Recycled . | . . . . . Retrieved Matter . | . . . . . Parts Self-Destructed . | . . . . . Prevented . | . . . . . Parts Restored . | . . . . . Kills | -11 -10 -10 -10 -9 ------- Run | Yrd Mat Min Exi Min Combat Hostiles Destroyed 12 | . 6 2 . 4 Guns 11 | . 6 2 . 3 AOE 1 | . . . . 1 Classes Destroyed 8 | . 5 . . 3 Worker 2 | . 1 . . 1 Builder 1 | . 1 . . . Tunneler 1 | . . . . 1 Recycler 2 | . 1 . . 1 Watcher 1 | . 1 . . . Grunt 8 | . 6 2 . . Demolisher 1 | . . . . 1 Assembled 3 | . . . . 3 Best Kill Streak 3 | . 2 2 . 3 Combat Bots Only 2 | . 2 2 . 2 Max Kills in Single Turn 2 | . 2 1 . 2 Gunslinging . | . . . . . Exploded 1 | . . . . 1 Melee . | . . . . . Uniques/NPCs Destroyed . | . . . . . Combat | -11 -10 -10 -10 -9 -------- Run | Yrd Mat Min Exi Min Hostile Shots Fired 71 | . 33 10 . 28 Missed 16 | . 8 2 . 6 Hits 55 | . 25 8 . 22 Melee 9 | . . . . 9 Projectile 46 | . 25 8 . 13 AOE 4 | . . . . 4 Damage Taken 1036 | . 378 115 . 543 Core 258 | . 118 30 . 110 Absorbed by Shields . | . . . . . Core Remaining (%) 100 | 100 . . . . Volleys Fired 50 | 1 22 8 . 19 Largest 2 | 2 2 2 . 2 Hottest 53 | 40 40 40 . 53 Shots Fired 83 | 2 43 17 . 21 Gun 73 | 2 43 17 . 11 Cannon . | . . . . . Launcher 6 | . . . . 6 Special 4 | . . . . 4 Kinetic 73 | 2 43 17 . 11 Thermal 4 | . . . . 4 Explosive 6 | . . . . 6 Electromagnetic . | . . . . . Robot Hit Streak 10 | 1 10 5 . 4 Robot Miss Streak 3 | 1 2 2 . 3 Penetration Max . | . . . . . Secondary Targets . | . . . . . Shots Hit Robots 51 | 1 29 9 . 12 Core Hits 38 | 2 16 5 . 15 Critical Kills . | . . . . . Critical Parts Destroyed . | . . . . . Critical Strikes . | . . . . . Melee Attacks . | . . . . . Impact . | . . . . . Slashing . | . . . . . Piercing . | . . . . . Sneak Attacks . | . . . . . Combat Hostiles . | . . . . . Follow-up Attacks . | . . . . . Damage Inflicted 918 | 17 395 116 . 390 Guns 631 | 11 393 116 . 111 Cannons . | . . . . . Explosions 275 | . . . . 275 Melee . | . . . . . Ramming 8 | 6 2 . . . Kinetic 631 | 11 393 116 . 111 Thermal 4 | . . . . 4 Explosive 275 | . . . . 275 Electromagnetic . | . . . . . Impact . | . . . . . Slashing . | . . . . . Piercing . | . . . . . Highest Corruption 11 | . 2 2 2 11 Average Corruption 2 | . 1 2 2 4 Corruption Purged . | . . . . . Corruption Blocked . | . . . . . Effects 48 | . 7 5 31 5 Message Errors 11 | . 2 1 7 1 Matter Fused 10 | . 2 . 8 . Heat Flow Errors 6 | . . . 4 2 Energy Discharges 7 | . 1 2 4 . Parts Rejected 1 | . 1 . . . Data Loss (minor) 9 | . . 1 7 1 Data Loss (major) 1 | . . . 1 . Misfires 1 | . . 1 . . Alerts 1 | . . . . 1 Weapon Failures 1 | . 1 . . . Overload Shots . | . . . . . Overflow Damage 8 | . . . . 8 Projectiles . | . . . . . Explosions 8 | . . . . 8 Melee . | . . . . . Knockbacks . | . . . . . Impact . | . . . . . Kinetic . | . . . . . Secondary . | . . . . . Self-Inflicted Damage 58 | . . . . 58 Shots 2 | . . . . 2 Rammed 4 | 3 . . . 1 Targets Rammed 5 | 3 1 . . 1 Kicked . | . . . . . Crushed 1 | . 1 . . . Highest Temperature 244 | . 2 2 244 171 Average Temperature 82 | . 2 1 99 79 Received Heat Transfer 282 | . 159 63 . 60 Siege Activations . | . . . . . Martial Activations . | . . . . . Shielding Activations . | . . . . . Robots Disrupted . | . . . . . Combat Hostiles . | . . . . . Robots Corrupted . | . . . . . Combat Hostiles . | . . . . . Parts Fried . | . . . . . Impact Corruptions . | . . . . . Robots Melted . | . . . . . Combat Hostiles . | . . . . . Parts Melted . | . . . . . Heat Transferred 50 | . . . . 50 Parts Sabotaged . | . . . . . Parts Stolen . | . . . . . Parts Stripped . | . . . . . Power Chain Reactions . | . . . . . Alert | -11 -10 -10 -10 -9 ------- Run | Yrd Mat Min Exi Min Maximum Alert Level . | . . . . . Low Security (%) 100 | 100 100 100 . 100 Level 1 . | . . . . . Level 2 . | . . . . . Level 3 . | . . . . . Level 4 . | . . . . . Level 5 . | . . . . . High Security . | . . . . . Max Security . | . . . . . Peak Influence 70 | . 70 40 . 32 Initial 9 | . . 9 . . Average 10 | . 17 7 . 4 Influence Increases 301 | . 181 50 . 70 Destroy 0b10 Robot/C 180 | . 120 40 . 20 Destroy 0b10 Robot/NC 35 | . 20 . . 15 Destroy Leader 42 | . 32 10 . . Successful Hack 9 | . 9 . . . Destroy Structure 35 | . . . . 35 Influence Decreases 301 | . 156 75 . 70 Entered New Map 16 | . . 16 . . Time Decay 248 | . 146 59 . 43 Lost Part 37 | . 10 . . 27 Squads Dispatched 2 | . 2 . . . Investigation . | . . . . . Extermination . | . . . . . Reinforcement 2 | . 2 . . . Assault . | . . . . . Garrison . | . . . . . Intercept . | . . . . . Searches Triggered . | . . . . . Construction Impeded . | . . . . . Haulers Reinforced . | . . . . . Active Scanning Responses . | . . . . . Cargo Convoy Interrupts . | . . . . . Stealth | -11 -10 -10 -10 -9 --------- Run | Yrd Mat Min Exi Min Distress Signals 1 | . 1 . . . Communications Jammed . | . . . . . Distress Signals . | . . . . . Times Spotted 22 | . 12 2 . 8 Peak Tracking Total 4 | . 3 2 . 4 Tactical Retreats . | . . . . . Traps | -11 -10 -10 -10 -9 ------- Run | Yrd Mat Min Exi Min Traps Triggered 3 | . 3 . . . Indirectly . | . . . . . Trap Hack Attempts . | . . . . . Triggered . | . . . . . Disarmed . | . . . . . Reprogrammed . | . . . . . Reused . | . . . . . Traps Extracted . | . . . . . Installed . | . . . . . Triggered . | . . . . . Machines | -11 -10 -10 -10 -9 ---------- Run | Yrd Mat Min Exi Min Machines Disabled . | . . . . . Max in Single Turn . | . . . . . Machines Repaired . | . . . . . Machines Dismantled . | . . . . . Machines Sabotaged . | . . . . . Overloaded Fab Kills . | . . . . . Hacking | -11 -10 -10 -10 -9 --------- Run | Yrd Mat Min Exi Min Machines Accessed 8 | . 4 . 4 . Terminals 2 | . 2 . . . Fabricators . | . . . . . Repair Stations . | . . . . . Recycling Units 2 | . 2 . . . Scanalyzers . | . . . . . Garrison Access . | . . . . . Total Hacks 62 | . 13 . 49 . Successful 57 | . 8 . 49 . Failed 5 | . 5 . . . Catastrophic . | . . . . . Database Lockouts . | . . . . . Manual . | . . . . . Terminals 7 | . 7 . . . Fabricators . | . . . . . Repair Stations . | . . . . . Recycling Units 6 | . 6 . . . Scanalyzers . | . . . . . Garrison Access . | . . . . . Terminal Hacks 53 | . 4 . 49 . Record 50 | . 1 . 49 . Emergency Access Points 1 | . 1 . . . Hauler Manifests 1 | . 1 . . . Zone Layout 1 | . 1 . . . Fabricator Hacks . | . . . . . Repair Station Hacks . | . . . . . Recycling Unit Hacks 4 | . 4 . . . Recycle Component 1 | . 1 . . . Process 1 | . 1 . . . Report Inventory 1 | . 1 . . . Retrieve Matter 1 | . 1 . . . Scanalyzer . | . . . . . Garrison Access Hacks . | . . . . . Unauthorized Hacks . | . . . . . Terminals . | . . . . . Fabricators . | . . . . . Repair Stations . | . . . . . Recycling Units . | . . . . . Scanalyzers . | . . . . . Garrison Access . | . . . . . Data Cores Recovered . | . . . . . Used . | . . . . . Hacking Detections 3 | . 3 . . . Full Trace Events 1 | . 1 . . . Feedback Events . | . . . . . Feedback Blocked . | . . . . . Robot Schematics Acquired . | . . . . . Robots Built . | . . . . . Authchips . | . . . . . Time . | . . . . . Total Robot Build Rating . | . . . . . Part Schematics Acquired . | . . . . . Parts Built . | . . . . . Authchips . | . . . . . Time . | . . . . . Total Part Build Rating . | . . . . . Part Studies Acquired . | . . . . . Parts Repaired . | . . . . . Time . | . . . . . Parts Recycled 1 | . 1 . . . Recycled Matter 96 | . 96 . . . Retrieved Matter 10 | . 10 . . . Retrieved Components . | . . . . . Parts Scanalyzed . | . . . . . Part Schematics Acquired . | . . . . . Parts Damaged . | . . . . . Bothacking | -11 -10 -10 -10 -9 ------------ Run | Yrd Mat Min Exi Min Used RIF Installer . | . . . . . Robots Hacked . | . . . . . Non-combat . | . . . . . Combat . | . . . . . Robot Hacks Applied . | . . . . . Relay Couplers Released . | . . . . . Fabnet Peak Effective % . | . . . . . Robots Rewired . | . . . . . Allies Hacked . | . . . . . Hacks Repelled . | . . . . . Allies | -11 -10 -10 -10 -9 -------- Run | Yrd Mat Min Exi Min Total Allies . | . . . . . Largest Group . | . . . . . Highest-Rated Group . | . . . . . Highest-Rated Ally . | . . . . . Total Orders . | . . . . . Ally Attacks . | . . . . . Total Damage . | . . . . . Kills . | . . . . . Allies Corrupted . | . . . . . Allies Melted . | . . . . . Intel | -11 -10 -10 -10 -9 ------- Run | Yrd Mat Min Exi Min Active Infowar (turns) 476 | . 456 . . 20 Terrain 456 | . 456 . . . Seismic 20 | . . . . 20 Robot Analysis Total . | . . . . . Derelict Logs Recovered 1 | . . . . 1 Drone Launches . | . . . . . Drone Recoveries . | . . . . . Exploration | -11 -10 -10 -10 -9 ------------- Run | Yrd Mat Min Exi Min Turns Passed 3368 | 115 577 319 2090 267 Spaces Moved 1783 | 66 315 158 1098 146 Core 6 | 6 . . . . Treads 408 | 60 315 33 . . Legs 1317 | . . 125 1098 94 Wheels 52 | . . . . 52 Hover . | . . . . . Flight . | . . . . . Fastest Speed 50 | 50 160 160 190 100 Average Speed 179 | 150 160 183 190 145 Slowest Speed 190 | 160 160 190 190 190 Overloaded Moves . | . . . . . Propulsion Burnouts . | . . . . . Robots Hopped . | . . . . . Potential Cave-ins . | . . . . . Cave-ins Triggered . | . . . . . Exploration Rate (%) 44 | 3 52 37 93 36 Regions Visited 4 Branch Regions 3 Pre-discovered Areas 1 | . . . 1 . Known Exits Taken . | . . . . . Unknown Exits Taken 4 | 1 1 1 1 . Scrap Searched . | . . . . . Spaces Dug . | . . . . . Terrain Destroyed 55 | . . . . 55 Melee . | . . . . . Projectile . | . . . . . AOE 55 | . . . . 55 Terrain Rammed . | . . . . . Walls Destroyed . | . . . . . Machines Disabled . | . . . . . Actions | -11 -10 -10 -10 -9 --------- Run | Yrd Mat Min Exi Min Total 1870 | 75 343 171 1102 179 Wait 2 | . 1 . . 1 Move 1779 | 65 314 157 1097 146 Hop . | . . . . . Pick Up 6 | . 3 1 1 1 Fast Attach 12 | 6 1 1 . 4 Attach 4 | . . 2 . 2 Detach 4 | . . 1 . 3 Swap 2 | . 1 1 . . Drop 2 | . . . . 2 Fire 50 | 1 22 8 . 19 Melee . | . . . . . Ram 1 | . . . . 1 Kick . | . . . . . Crush 4 | 3 1 . . . Escape Stasis . | . . . . . Rewire 4 | . . . 4 . Trap . | . . . . . Miscellaneous . | . . . . . Route ------- -11/Scrapyard -10/Materials -10/Mines -10/Exiles -9/Mines History --------- Turn | Location | Event 39 | -11/Scrapyard | Discovered new exit (range 16) 116 | -11/Scrapyard | Entered Materials 304 | -10/Materials | Build established: Mutant 681 | -10/Materials | Discovered new exit (range 7) 693 | -10/Materials | Entered Mines 713 | -10/Mines | Met a Derelict bent on vengeance 744 | -10/Mines | Core integrity fell below 50% 873 | -10/Mines | Received a Rocket Launcher from a helpful Derelict 1001 | -10/Mines | Deemed a non-threat by the Exiles lab entrance 1003 | -10/Mines | Discovered new exit (range 5) 1012 | -10/Mines | Entered Exiles 1071 | -10/Exiles | Met 8R-AWN 1104 | -10/Exiles | Met EX-HEX 1207 | -10/Exiles | Met EX-DEC 1244 | -10/Exiles | Visited The Gauntlet 1492 | -10/Exiles | Learned location of Zion (-7) 1649 | -10/Exiles | Discovered new exit (range 14) 1883 | -10/Exiles | Met EX-BIN 1982 | -10/Exiles | Aligned with FarCom system 1983 | -10/Exiles | Given EX-Vault access code 3102 | -10/Exiles | Entered Mines 3103 | -9/Mines | Assembled infested the area 3295 | -9/Mines | Core integrity fell below 20% 3336 | -9/Mines | Learned 4 Materials zone layouts 3359 | -9/Mines | System corruption reached 10% 3369 | -9/Mines | Destroyed by as-78341 with Assembled F-torch Last Messages --------------- 03277_ The unstable cave ceiling collapses. 03295_ as-73532 destroyed. 03296_ Acquired 13 matter. 03299_ Acquired Com. Wheel. 03313_ Acquired 4 matter. 03319_ Dropped Aluminum Leg. 03319_ Dropped Lgt. Treads. 03328_ Acquired Welding Torch. 03332_ System corrupted: Heat flow error (+182). 03336_ Acquired derelict log, extracted data. Data stored: Materials zone layouts (x4). 03349_ Acquired Seismic Detector. 03350_ Assault Rifle destroyed. 03357_ =# TTW4B5LJ,TZ|2 TVF> 4#VTZZWK T1 03358_ Com. Wheel destroyed. 03358_ System corrupted by crushing effect (+4). 03361_ Slammed into as-07023. 03361_ Ion Engine broken. 03361_ Destabilizing: Short circuit. 03361_ Knocked back. Map ----- +----------------------------------------------------+ | ?????????????????????????????????????????????????? | | ?????????????????????????????????????????????????? | | ????????????????????? ?????? ???????????????????? | | ??????????????????## ?????? #??????????????????? | | ???????????????? #????# ??????????????????? | | ?????????????? #### ???????????????????? | | ?????????????? ???????????????????? | | ??????????????? ???????????????????? | | ???????????????? ????????????????????? | | ????????????????? ????????????????????? | | ??????????????????# #????????????????????? | | ???????????????????# #????##??????????????? | | ???????????????????# ##?? ##?????????????? | | ?????????????????### ## ##????????????? | | ??????????# * ## ! ##???????????? | | ?????????? %! %%! #??????????? | | ?????????? ! ????????? | | ?????????? ## ### ????????? | | ?????????????### ?????# #???????? #??????????? | | ?????????????????????#??# #### #???????????? | | ?????????????????????# ## #?????????????? | | ?????????????????????# aa##### #???????????????? | | ?????????????????????####a#??????????????????????? | | ????????????????????????# #??????????????????????? | | ????????????????????????# #??????????????????????? | | ?????????????????# ?????#@#??????????????????????? | | ??????????????????# ## #####??????????????????? | | ???????????????????# #??????????????????? | | ???????????????????## #####=#??????????#???????? | | ????????????????????# ????#!#?????????? ???????? | | ???????????????????# ?????#=#?????????? ???????? | | ???????????????????# ??????# #?????????# #??????? | | ???????????????????##???????#=#??######?# #??????? | | ????????????????????????????#=#??? #?# #??????? | | ????????????????????????????# #???? #?# #??????? | | ????????????????????????????# ##???# #?# #??????? | | ???????????????????????????## ##??# #?# #??????? | | ???????????????????????????# #### ### #??????? | | ???????????????????????????# ## ## ###????? | | ???????????????????????????## ! ##???? | | ????????????????????????????## # #???? | | ?????????????????????????????### " ####?? | | ???????????????????????????????#### # ##? | | ??????????????????????????????????## #? | | ???????????????????????###########?#! # # ### | | ?????????????????????### ## # ##### ## | | ????????????????????## # # # | | ?????????? ####### # | | ?????????? ## = # | | ?????????? # ## | +----------------------------------------------------+ Best States ------------- Heat Dissipation 25 Energy Generation 14 Energy Capacity 250 Matter Stores 300 Matter Capacity 300 Sight Range 16 Terrain Scan Range 14 Terrain Scan Density 10 Evasion (%) 55 Recoil Reduction 2 Item Schematics ----------------- None Robot Schematics ------------------ None Fabricated ------------ Nothing Repaired ---------- Nothing Studied --------- None Alien Tech Used ----------------- None Achievements -------------- Shopping List Sixth Sense Tourist Use The Force Challenges ------------ None Game ------ Seed BraceMiningDevice Manual? 0 Play Time 00:28:38 Cumulative 4.7 hours Start 2026.03.02 @ 14:06:13 End 2026.03.02 @ 15:01:03 Sessions 1 Manual Loads 0 Difficulty Rogue Special Mode None Game No. 8 Rogue 8 Adventurer 0 Explorer 0 Win Type - Total 0 Types 0/0/0/0/0/0/0/0/0/0 Lore% 13 Gallery% 8 Achievement% 7 Wizard Run 0 Options --------- Layout 1 ASCII 0 Keyboard 0 Movement Numpad Keybinds 0 Fullscreen 1 Font 24/Smallcaps Map View 50x35 Zoom Use 0% Tactical HUD 1 Map Filters NONE Filters NONE Steam 1 RUN: 41893c4b-ad99-46e7-a5ce-5c7d788b6b3c